lending/lending_fUSD_20260328
["ID","MTS","AMOUNT","RATE_DAILY","PERIOD"]
[418995208,1774725040539,-500.0,0.00013698,2]
[418995209,1774725040548,-500.0,0.00013698,2]
[418995210,1774725040558,-500.0,0.00013698,2]
[418995211,1774725040567,-500.0,0.00013698,2]
[418995212,1774725040577,-291.70995289,0.00013698,2]
[418995213,1774725040587,-500.0,0.00013698,2]
[418995214,1774725040597,-500.0,0.00013698,2]
[418995215,1774725040607,-500.0,0.00013698,2]
[418995216,1774725040616,-500.0,0.00013698,2]
[418995217,1774725040625,-500.0,0.00013698,2]
[418995218,1774725040634,-316.47434679,0.00013698,2]
[418995219,1774725040643,-500.0,0.00013698,2]
[418995220,1774725040652,-500.0,0.00013698,2]
[418995221,1774725040661,-500.0,0.00013698,2]
[418995222,1774725040672,-500.0,0.00013698,2]
[418995223,1774725040681,-500.0,0.00013698,2]
[418995224,1774725040691,-500.0,0.00013698,2]
[418995225,1774725040701,-500.0,0.00013698,2]
[418995226,1774725040712,-500.0,0.00013698,2]
[418995227,1774725040720,-500.0,0.00013698,2]
[418995228,1774725040730,-500.0,0.00013698,2]
[418995229,1774725040739,-500.0,0.00013698,2]
[418995230,1774725040748,-500.0,0.00013698,2]
[418995231,1774725040757,-500.0,0.00013698,2]
[418995232,1774725040766,-214.95038261,0.00013698,2]
[418995233,1774725040775,-150.0,0.00013699,2]
[418995234,1774725040784,-150.0,0.00013699,2]
[418995235,1774725040793,-150.0,0.00013699,2]
[418995236,1774725040902,-150.0,0.00013699,2]
[418995237,1774725040912,-370.96,0.00013699,2]
[418995238,1774725040921,-151.0,0.00013699,2]
[418995239,1774725040930,-151.0,0.00013699,2]
[418995240,1774725040940,-151.0,0.00013699,2]
[418995241,1774725040950,-151.0,0.00013699,2]
[418995242,1774725040959,-548.13868249,0.00013699,2]
[418995243,1774725040968,-500.0,0.00013699,2]
[418995244,1774725040977,-500.0,0.00013699,2]
[418995245,1774725040986,-267.42294845,0.00013699,2]
[418995246,1774725040995,-500.0,0.00013699,2]
[418995247,1774725041005,-500.0,0.00013699,2]
[418995248,1774725041014,-500.0,0.00013699,2]
[418995249,1774725041023,-500.0,0.00013699,2]
[418995250,1774725041032,-500.0,0.00013699,2]
[418995251,1774725041042,-500.0,0.00013699,2]
[418995252,1774725041051,-500.0,0.00013699,2]
[418995253,1774725041061,-500.0,0.00013699,2]
[418995254,1774725041071,-500.0,0.00013699,2]
[418995255,1774725041081,-500.0,0.00013699,2]
[418995256,1774725041090,-500.0,0.00013699,2]
[418995257,1774725041101,-500.0,0.00013699,2]
[418995258,1774725041111,-500.42331564,0.00013699,2]
[418995259,1774725041120,-500.0,0.00013699,2]
[418995260,1774725041131,-500.0,0.00013699,2]
[418995261,1774725041141,-500.0,0.00013699,2]
[418995262,1774725041151,-500.0,0.00013699,2]
[418995263,1774725041160,-438.78752159,0.00013699,2]
[418995264,1774725041170,-1000.0,0.000137,2]
[418995265,1774725041180,-150.0,0.000137,2]
[418995266,1774725041190,-150.0,0.000137,2]
[418995267,1774725041200,-150.0,0.000137,2]
[418995268,1774725041210,-217.84187082,0.000137,2]
[418995269,1774725041219,-766.28,0.000137,2]
[418995270,1774725041230,-943.05,0.000137,2]
[418995271,1774725041240,-1439.59,0.000137,2]
[418995272,1774725041251,-8966.85,0.000137,2]
[418995273,1774725041260,-151.0,0.000137,2]
[418995274,1774725041269,-581.45,0.000137,2]
[418995275,1774725041278,-1000.0,0.00013714,2]
[418995276,1774725041288,-1000.0,0.00013719,2]
[418995277,1774725041297,-1000.0,0.00013729,2]
[418995278,1774725041308,-1959.26279,0.0001374,2]
[418995279,1774725041317,-1959.26279,0.0001374,2]
[418995280,1774725041328,-1000.0,0.00013744,2]
[418995281,1774725041338,-1000.0,0.00013755,2]
[418995282,1774725041348,-1000.0,0.00013755,2]
[418995283,1774725041357,-1203.0020612,0.00013756,2]
[418995284,1774725041366,-1000.0,0.00013758,2]
[418995285,1774725041376,-1959.2628,0.0001376,2]
[418995286,1774725041386,-512.02988832,0.00013774,2]
[418995287,1774725041397,-1015.03516227,0.00013774,2]
[418995288,1774725041407,-921.06338143,0.00013774,2]
[418995289,1774725041418,-1000.0,0.00013776,2]
[418995290,1774725041428,-4072.11565788,0.00013779,2]
[418995291,1774725041438,-14456.56231062,0.00013779,2]
[418995292,1774725041449,-500.0,0.00013781,2]
[418995293,1774725041458,-1000.0,0.00013794,2]
[418995294,1774725041467,-1000.0,0.00013794,2]
[418995295,1774725041476,-1000.0,0.00013804,2]
[418995296,1774725041485,-1000.0,0.00013822,2]
[418995297,1774725041495,-1000.0,0.00013822,2]
[418995298,1774725041504,-1000.0,0.00013823,2]
[418995299,1774725041513,-1000.0,0.00013828,2]
[418995300,1774725041522,-1000.0,0.00013828,2]
[418995301,1774725041532,-1060.32865217,0.00013831,2]
[418995302,1774725041542,-433.0,0.00013841,2]
[418995303,1774725041551,-2136.31940232,0.00013846,2]
[418995304,1774725041561,-1967.41159405,0.00013846,2]
[418995305,1774725041571,-1000.0,0.00013851,2]
[418995306,1774725041580,-1000.0,0.00013871,2]
[418995307,1774725041589,-500.0,0.00013873,2]
[418995308,1774725041599,-500.0,0.00013873,2]
[418995309,1774725041609,-500.0,0.00013873,2]
[418995310,1774725041618,-500.0,0.00013873,2]
[418995311,1774725041627,-500.0,0.00013873,2]
[418995312,1774725041636,-166.35931834,0.00013873,2]
[418995313,1774725041645,-548.0821861,0.0001388,2]
[418995314,1774725041655,-500.0,0.0001388,2]
[418995315,1774725041664,-500.0,0.0001388,2]
[418995316,1774725041674,-500.0,0.00013881,2]
[418995317,1774725041683,-11579.5695592,0.00013881,2]
[418995318,1774725041692,-500.0,0.00013881,2]
[418995319,1774725041701,-500.0,0.00013881,2]
[418995320,1774725041712,-500.0,0.00013881,2]
[418995321,1774725041721,-500.0,0.00013881,2]
[418995322,1774725041731,-500.0,0.00013881,2]
[418995323,1774725041740,-500.0,0.00013881,2]
[418995324,1774725041749,-500.0,0.00013881,2]
[418995325,1774725041759,-500.0,0.00013881,2]
[418995326,1774725041768,-500.0,0.00013881,2]
[418995327,1774725041778,-500.0,0.00013881,2]
[418995328,1774725041788,-500.0,0.00013881,2]
[418995329,1774725041797,-551.51747396,0.00013881,2]
[418995330,1774725041807,-270.78845739,0.00013881,2]
[418995331,1774725041816,-503.176288,0.00013881,2]
[418995332,1774725041826,-503.176288,0.00013881,2]
[418995333,1774725041835,-503.176288,0.00013881,2]
[418995334,1774725041844,-503.176288,0.00013881,2]
[418995335,1774725041854,-2000.0,0.00013882,2]
[418995336,1774725041863,-200.0,0.00013882,2]
[418995337,1774725041873,-1000.0,0.00013882,2]
[418995338,1774725041882,-1000.0,0.00013882,2]
[418995339,1774725041891,-1000.0,0.00013882,2]
[418995340,1774725041900,-1000.0,0.00013882,2]
[418995341,1774725041910,-1131.61932121,0.00013882,2]
[418995342,1774725041919,-204.38135702,0.00013882,2]
[418995343,1774725041928,-151.0,0.00013882,2]
[418995344,1774725041937,-200.0,0.00013882,2]
[418995345,1774725041947,-200.0,0.00013882,2]
[418995346,1774725041957,-1959.2628,0.00013882,2]
[418995347,1774725041966,-1959.26279,0.00013882,2]
[418995348,1774725041975,-1959.26279,0.00013882,2]
[418995349,1774725041985,-151.0,0.00013882,2]
[418995350,1774725041994,-151.0,0.00013882,2]
[418995351,1774725042003,-151.0,0.00013882,2]
[418995352,1774725042012,-276.996238,0.00013882,2]
[418995353,1774725042022,-186.21,0.000139,2]
[418995354,1774725042031,-2000.0,0.000139,2]
[418995355,1774725042041,-1000.0,0.000139,2]
[418995356,1774725042051,-312.0,0.000139,2]
[418995357,1774725042059,-587.0,0.00013927,2]
[418995358,1774725042069,-13295.87172323,0.00013965,2]
[418995359,1774725042078,-2351.0,0.00013971,2]
[418995360,1774725042088,-150.0,0.00013973,2]
[418995361,1774725042097,-150.0,0.00013973,2]
[418995362,1774725042106,-150.0,0.00013973,2]
[418995363,1774725042115,-150.0,0.00013973,2]
[418995364,1774725042125,-150.0,0.00013973,2]
[418995365,1774725042134,-4556.43492676,0.0001399,2]
[418995366,1774725042144,-511.0,0.00014,2]
[418995367,1774725042153,-2016.0,0.00014,2]
[418995368,1774725042163,-7029.87228447,0.00014,7]
[418995369,1774725042172,-155.914,0.00014005,2]
[418995370,1774725042182,-5888.0,0.0001401,2]
[418995371,1774725042191,-29428.83121009,0.0001401,2]
[418995372,1774725042200,-298.352421,0.0001401,2]
[418995373,1774725042209,-298.352421,0.0001401,2]
[418995374,1774725042219,-298.352421,0.0001401,2]
[418995375,1774725042228,-298.352421,0.0001401,2]
[418995376,1774725042237,-671.40174411,0.00014012,2]
[418995377,1774725042247,-208.32,0.00014021,2]
[418995378,1774725042256,-1323.47154741,0.00014021,2]
[418995379,1774725042265,-200.0,0.00014021,2]
[418995380,1774725042275,-200.0,0.00014021,2]
[418995381,1774725042284,-200.0,0.00014021,2]
[418995382,1774725042294,-250.0,0.00014029,2]
[418995383,1774725042303,-5888.0,0.00014038,2]
[418995384,1774725042313,-3740.48806576,0.00014077,2]
[418995385,1774725042322,-166.66,0.00014079,2]
[418995386,1774725042331,-445.5181395,0.00014115,2]
[418995387,1774725042340,-5888.0,0.00014152,2]
[418995388,1774725042349,-200.0,0.00014161,2]
[418995389,1774725042359,-200.0,0.00014161,2]
[418995390,1774725042367,-200.0,0.00014161,2]
[418995391,1774725042377,-5888.0,0.00014188,2]
[418995392,1774725042386,-5888.0,0.00014195,2]
[418995393,1774725042395,-5888.0,0.00014204,2]
[418995394,1774725042405,-151.0,0.0001421,2]
[418995395,1774725042415,-151.0,0.0001421,2]
[418995396,1774725042423,-5888.0,0.0001421,2]
[418995397,1774725042433,-150.0,0.00014247,2]
[418995398,1774725042442,-150.0,0.00014247,2]
[418995399,1774725042451,-150.0,0.00014247,2]
[418995400,1774725042460,-150.0,0.00014247,2]
[418995401,1774725042470,-1000.0,0.00014247,2]
[418995402,1774725042479,-1000.0,0.00014247,2]
[418995403,1774725042488,-1000.0,0.00014247,2]
[418995404,1774725042497,-1000.0,0.00014247,2]
[418995405,1774725042507,-1000.0,0.00014247,2]
[418995406,1774725042516,-1000.0,0.00014247,2]
[418995407,1774725042526,-1000.0,0.00014247,2]
[418995408,1774725042535,-1000.85155912,0.00014247,2]
[418995409,1774725042545,-1000.0,0.00014247,2]
[418995410,1774725042554,-500.92226367,0.00014247,2]
[418995411,1774725042563,-1000.0,0.00014247,2]
[418995412,1774725042573,-5888.0,0.00014283,2]
[418995413,1774725042582,-5630.37221752,0.00014295,2]
[418995414,1774725042591,-500.0,0.00014296,2]
[418995415,1774725042600,-500.0,0.00014296,2]
[418995416,1774725042610,-200.0,0.00014303,2]
[418995417,1774725042619,-200.0,0.00014303,2]
[418995418,1774725042628,-200.0,0.00014303,2]
[418995419,1774725042638,-500.0,0.0001431,2]
[418995420,1774725042646,-5888.0,0.00014331,2]
[418995421,1774725042656,-336.35,0.00014355,2]
[418995422,1774725042665,-350.0,0.00014382,4]
[418995423,1774725042674,-301.98,0.00014384,2]
[418995424,1774725042683,-2807.0,0.000144,2]
[418995425,1774725042692,-161.0,0.000144,2]
[418995426,1774725042702,-161.0,0.000144,2]
[418995427,1774725042711,-2807.0,0.000144,2]
[418995428,1774725042721,-168.12,0.00014401,2]
[418995429,1774725042730,-168.12,0.00014401,2]
[418995430,1774725042740,-151.0,0.00014401,2]
[418995431,1774725042749,-287.00134339,0.00014404,2]
[418995432,1774725042760,-500.0,0.00014404,2]
[418995433,1774725042769,-5888.0,0.00014412,2]
[418995434,1774725042779,-1000.0,0.00014421,2]
[418995435,1774725042788,-1000.0,0.00014421,2]
[418995436,1774725042798,-500.4848322,0.00014421,2]
[418995437,1774725042807,-200.0,0.00014446,2]
[418995438,1774725042816,-200.0,0.00014446,2]
[418995439,1774725042826,-200.0,0.00014446,2]
[418995440,1774725042835,-13295.87172323,0.00014449,2]
[418995441,1774725042845,-5888.0,0.00014462,2]
[418995442,1774725042855,-151.0,0.00014482,2]
[418995443,1774725042864,-151.0,0.00014482,2]
[418995444,1774725042874,-151.0,0.00014482,2]
[418995445,1774725042883,-29428.83121009,0.00014482,2]
[418995446,1774725042892,-512.02988832,0.00014482,2]
[418995447,1774725042902,-5888.0,0.000145,2]
[418995448,1774725042911,-1600.0,0.00014593,2]
[418995449,1774725042919,-5888.0,0.00014663,2]
[418995450,1774725042928,-700.0,0.00014712,2]
[418995451,1774725042938,-2807.0,0.0001472,2]
[418995452,1774725042947,-544.0,0.00014757,2]
[418995453,1774725042956,-5888.0,0.00014766,2]
[418995454,1774725042966,-503.176288,0.00014766,2]
[418995455,1774725042975,-503.176288,0.00014766,2]
[418995456,1774725042984,-503.176288,0.00014766,2]
[418995457,1774725042993,-503.176288,0.00014766,2]
[418995458,1774725043002,-5888.0,0.00014772,2]
[418995459,1774725043011,-1500.0,0.00014795,2]
[418995460,1774725043020,-1500.0,0.00014795,2]
[418995461,1774725043030,-678.52624254,0.00014795,2]
[418995462,1774725043040,-1500.0,0.00014795,2]
[418995463,1774725043050,-1500.0,0.00014795,2]
[418995464,1774725043060,-1000.75630321,0.00014795,2]
[418995465,1774725043070,-1500.0,0.00014795,2]
[418995466,1774725043079,-1500.0,0.00014795,2]
[418995467,1774725043089,-579.19039319,0.00014795,2]
[418995468,1774725043099,-350.0,0.00014795,4]
[418995469,1774725043109,-333.0,0.00014837,2]
[418995470,1774725043119,-294.8,0.00014843,2]
[418995471,1774725043129,-1000.0,0.00014844,2]
[418995472,1774725043139,-1000.0,0.00014844,2]
[418995473,1774725043149,-444.0,0.00014846,2]
[418995474,1774725043159,-555.0,0.00014846,2]
[418995475,1774725043169,-444.0,0.00014846,2]
[418995476,1774725043179,-500.0,0.00014846,2]
[418995477,1774725043189,-500.0,0.00014846,2]
[418995478,1774725043199,-500.0,0.00014846,2]
[418995479,1774725043209,-500.0,0.00014846,2]
[418995480,1774725043219,-254.66,0.00014846,2]
[418995481,1774725043228,-500.0,0.00014846,2]
[418995484,1774725043336,-220.69817382,0.00014846,2]
[418995485,1774725043347,-5888.0,0.00014848,2]
[418995486,1774725043358,-374.31074407,0.00014858,2]
[418995487,1774725043367,-13295.87172323,0.00014933,2]
[418995488,1774725043378,-2000.0,0.00014938,2]
[418995489,1774725043387,-1000.0,0.00014952,2]
[418995490,1774725043397,-29428.83121009,0.00014955,2]
[418995491,1774725043406,-298.352421,0.00014955,2]
[418995492,1774725043415,-298.352421,0.00014955,2]
[418995493,1774725043425,-298.352421,0.00014955,2]
[418995494,1774725043434,-298.352421,0.00014955,2]
[418995495,1774725043443,-161.04,0.00014963,2]
[418995496,1774725043453,-350.0,0.00014965,4]
[418995497,1774725043462,-1500.0,0.00014968,2]
[418995498,1774725043472,-1500.0,0.00014968,2]
[418995499,1774725043482,-501.47333774,0.00015,2]
[418995500,1774725043492,-755.10640697,0.00015,2]
[418995501,1774725043502,-500.0,0.00015,2]
[418995502,1774725043512,-500.0,0.00015,2]
[418995503,1774725043522,-500.0,0.00015,2]
[418995504,1774725043532,-500.0,0.00015,2]
[418995505,1774725043542,-500.0,0.00015,2]
[418995506,1774725043551,-500.0,0.00015,2]
[418995507,1774725043561,-586.43,0.00015,2]
[418995508,1774725043571,-500.0,0.00015,2]
[418995509,1774725043581,-500.0,0.00015,2]
[418995510,1774725043590,-500.0,0.00015,2]
[418995511,1774725043600,-500.0,0.00015,2]
[418995512,1774725043610,-500.0,0.00015,2]
[418995514,1774725043620,-500.0,0.00015,2]
[418995515,1774725043629,-376.2,0.00015,2]
[418995517,1774725043639,-290.0,0.00015,2]
[418995519,1774725043649,-300.0,0.00015,2]
[418995520,1774725043658,-626.72,0.00015,2]
[418995521,1774725043668,-336.35,0.00015027,2]
[418995522,1774725043679,-161.0,0.0001504,2]
[418995523,1774725043688,-5888.0,0.00015057,2]
[418995524,1774725043698,-151.0,0.00015057,2]
[418995526,1774725043708,-151.0,0.00015057,2]
[418995527,1774725043718,-371.18,0.00015068,2]
[418995528,1774725043727,-301.98,0.00015068,2]
[418995529,1774725043736,-5888.0,0.00015093,2]
[418995530,1774725043745,-736.0,0.00015119,2]
[418995531,1774725043754,-1203.0020612,0.00015139,2]
[418995533,1774725043764,-512.02988832,0.00015191,2]
[418995534,1774725043774,-5888.0,0.00015227,2]
[418995535,1774725043783,-5888.0,0.00015236,2]
[418995536,1774725043793,-5888.0,0.00015241,2]
[418995537,1774725043802,-5888.0,0.00015273,2]
[418995538,1774725043812,-592.0,0.00015296,2]
[418995539,1774725043822,-252.0,0.000153,2]
[418995540,1774725043831,-5888.0,0.00015338,2]
[418995541,1774725043841,-1580.25367425,0.00015342,2]
[418995542,1774725043851,-1005.20312334,0.00015342,2]
[418995543,1774725043860,-1465.66697892,0.00015342,2]
[418995544,1774725043870,-889.39669243,0.00015342,2]
[418995545,1774725043880,-409.38735598,0.00015342,2]
[418995546,1774725043889,-2000.0,0.00015342,2]
[418995547,1774725043898,-1570.0,0.0001536,2]
[418995548,1774725043907,-3292.0,0.00015368,2]
[418995549,1774725043917,-691.78949259,0.00015392,2]
[418995550,1774725043927,-1007.43757273,0.00015392,2]
[418995551,1774725043936,-155.0,0.00015406,2]
[418995552,1774725043946,-13295.87172323,0.00015416,2]
[418995553,1774725043956,-29428.83121009,0.00015427,2]
[418995554,1774725043965,-5888.0,0.00015433,2]
[418995555,1774725043975,-151.0,0.00015433,2]
[418995556,1774725043985,-151.0,0.00015433,2]
[418995557,1774725043996,-151.0,0.00015433,2]
[418995558,1774725044005,-5888.0,0.00015451,2]
[418995559,1774725044015,-151.0,0.00015454,2]
[418995560,1774725044024,-1000.0,0.000155,5]
[418995561,1774725044034,-183.65884113,0.000155,2]
[418995562,1774725044044,-189.539922,0.00015503,7]
[418995563,1774725044054,-4000.0,0.00015507,2]
[418995564,1774725044064,-503.176288,0.00015507,2]
[418995565,1774725044073,-503.176288,0.00015507,2]
[418995566,1774725044083,-503.176288,0.00015507,2]
[418995567,1774725044092,-503.176288,0.00015507,2]
[418995568,1774725044102,-2000.0,0.00015516,2]
[418995569,1774725044112,-4722.0,0.00015582,7]
[418995570,1774725044121,-1000.0,0.000156,5]
[418995571,1774725044131,-732.54446763,0.00015634,2]
[418995572,1774725044140,-161.0,0.0001568,2]
[418995573,1774725044149,-1570.0,0.0001568,2]
[418995574,1774725044159,-1638.74267491,0.0001568,2]
[418995575,1774725044168,-766.28,0.000157,2]
[418995576,1774725044177,-943.05,0.000157,2]
[418995577,1774725044186,-1439.59,0.000157,2]
[418995578,1774725044196,-8966.85,0.000157,2]
[418995579,1774725044205,-1000.0,0.000157,5]
[418995580,1774725044215,-581.45,0.000157,2]
[418995581,1774725044224,-373.0,0.00015753,2]
[418995582,1774725044233,-301.98,0.00015753,2]
[418995583,1774725044242,-1000.0,0.000158,5]
[418995584,1774725044251,-11579.5695592,0.00015879,2]
[418995585,1774725044261,-224.23,0.00015883,2]
[418995586,1774725044270,-379.12,0.0001589,2]
[418995587,1774725044279,-500.0,0.0001589,2]
[418995588,1774725044288,-4000.0,0.00015895,2]
[418995589,1774725044297,-29428.83121009,0.000159,2]
[418995590,1774725044307,-1694.0,0.000159,5]
[418995591,1774725044316,-512.02988832,0.000159,2]
[418995592,1774725044325,-169320.03871245,0.000159,2]
[418995593,1774725044335,-298.352421,0.000159,2]
[418995594,1774725044344,-298.352421,0.000159,2]
[418995595,1774725044353,-298.352421,0.000159,2]
[418995596,1774725044363,-298.352421,0.000159,2]
[418995597,1774725044372,-13295.87172323,0.000159,2]
[418995598,1774725044382,-4072.11565788,0.000159,2]
[418995599,1774725044392,-14456.56231062,0.000159,2]
[418995600,1774725044402,-1015.03516227,0.000159,2]
[418995601,1774725044412,-151.0,0.000159,2]
[418995602,1774725044422,-151.0,0.000159,2]
[418995603,1774725044431,-151.0,0.000159,2]
[418995604,1774725044441,-921.06338143,0.000159,2]
[418995605,1774725044451,-3818.32173057,0.0001596,2]
[418995606,1774725044461,-803.24535537,0.0001597,2]
[418995607,1774725044470,-500.0,0.00015973,2]
[418995608,1774725044479,-500.0,0.00015973,2]
[418995609,1774725044490,-500.0,0.00015973,2]
[418995610,1774725044499,-500.0,0.00015973,2]
[418995611,1774725044508,-151.0,0.00015973,2]
[418995612,1774725044518,-151.0,0.00015973,2]
[418995613,1774725044528,-1134.59299072,0.0001599,2]
[418995614,1774725044537,-5703151.57674484,0.00016,2]
[418995617,1774725044556,-766.07718004,0.00016,2]
[418995619,1774725044567,-324.27,0.00016,2]
[418995621,1774725044578,-7121.62979105,0.00016,2]
[418995623,1774725044722,-150.0,0.00013699,2]
[418995624,1774725044731,-246.46210474,0.00016,2]
[418995625,1774725044763,-150.0,0.000116,2]
[418995626,1774725044773,-1763186.22347556,0.00016,2]
[418995627,1774725044785,-1823212.74668348,0.00016,2]
[418995628,1774725044795,-5203348.72864093,0.00016,2]
[418995629,1774725044805,-200.0,0.00016,2]
[418995630,1774725044815,-150.93585401,0.00016,2]
[418995631,1774725044824,-900548.15587213,0.00016,2]
[418995632,1774725044893,-150.0,0.00011546,2]
[418995633,1774725044903,-150.0,0.00011546,2]
[418995634,1774725044912,-693.80145634,0.00016,2]
[418995642,1774725046703,-500.0,0.00015883,2]
[418995643,1774725046712,-545.77082298,0.00016,2]
[418995644,1774725046807,-441432.36293514,0.00016,2]
[418995647,1774725051391,2149.88,0.00011082,2]
[418995648,1774725052668,500.0,0.00011512,2]
[418995649,1774725052721,441.77730759,0.00011512,2]
[418995650,1774725054236,500.0,0.00011512,2]
[418995651,1774725054291,240.38891848,0.00011512,2]
[418995652,1774725054997,1113.0,0.000102,5]
[418995653,1774725055672,206.34292365,0.00011079,2]
[418995654,1774725055745,834.48670674,0.00011079,2]
[418995655,1774725069205,4014.13414354,0.00011513,2]
[418995656,1774725069243,10000.01,0.00011513,2]
[418995657,1774725069268,10000.01,0.00011513,2]
[418995658,1774725069294,10000.01,0.00011513,2]
[418995659,1774725089277,3419.268,0.00011283,2]
[418995660,1774725090015,263.124,0.00011283,2]
[418995661,1774725115184,870.0,0.00011124,2]
[418995662,1774725151192,-182.96447148,0.00011512,2]
[418995663,1774725151219,-500.0,0.00011512,2]
[418995664,1774725151250,-500.0,0.00011512,2]
[418995665,1774725151278,-500.0,0.00011512,2]
[418995666,1774725151309,-500.0,0.00011512,2]
[418995667,1774725151339,-500.0,0.00011512,2]
[418995668,1774725151370,-500.0,0.00011512,2]
[418995669,1774725151399,-380.75862772,0.00011512,2]
[418995670,1774725151429,-500.0,0.00011512,2]
[418995671,1774725151458,-500.0,0.00011512,2]
[418995672,1774725151490,-182.95783508,0.00011512,2]
[418995673,1774725157251,-500.0,0.00011512,2]
[418995674,1774725157285,-506.64813144,0.00011512,2]
[418995675,1774725157318,-689.60596652,0.00011512,2]
[418995676,1774725157352,-689.60596652,0.00011512,2]
[418995677,1774725157384,-689.60596652,0.00011512,2]
[418995678,1774725157416,-689.60596652,0.00011512,2]
[418995679,1774725157450,-689.60596652,0.00011512,2]
[418995680,1774725157482,-401.0481054,0.00011512,2]
[418995682,1774725163200,-288.55786112,0.00011512,2]
[418995683,1774725163235,-689.60596652,0.00011512,2]
[418995684,1774725163270,-689.60596652,0.00011512,2]
[418995685,1774725163304,-689.60596652,0.00011512,2]
[418995686,1774725163340,-689.60596652,0.00011512,2]
[418995687,1774725163375,-689.60596652,0.00011512,2]
[418995688,1774725163409,-689.60596652,0.00011512,2]
[418995689,1774725163443,-458.016713,0.00011512,2]
[418995690,1774725166566,154.19579668,0.000114,2]
[418995691,1774725166623,162.51166731,0.000114,2]
[418995692,1774725198987,1094.04875746,0.00011461,2]
[418995693,1774725199577,5033.92745662,0.00011461,2]
[418995694,1774725206099,421.76529288,0.00011412,2]
[418995695,1774725220215,5519.74249108,0.00011413,2]
[418995696,1774725221699,5509.31957863,0.00011413,2]
[418995699,1774725271430,9439.59428046,0.00011413,2]
[418995700,1774725271831,17162.96054444,0.00011413,2]
[418995701,1774725308599,179.14751537,0.00011413,2]
[418995702,1774725326388,-151.0,0.0001151,2]
[418995703,1774725326418,-151.0,0.0001151,2]
[418995704,1774725326449,-151.0,0.0001151,2]
[418995705,1774725326478,-1200.0,0.00011511,2]
[418995706,1774725326506,-155.914,0.00011511,2]
[418995707,1774725326535,-300.0,0.00011511,2]
[418995708,1774725326563,-300.0,0.00011511,2]
[418995709,1774725326592,-1200.0,0.00011511,2]
[418995710,1774725326622,-150.0,0.00011511,2]
[418995711,1774725326651,-300.0,0.00011511,2]
[418995712,1774725326680,-500.0,0.00011512,2]
[418995713,1774725326715,-231.58925352,0.00011512,2]
[418995714,1774725327040,-689.60596652,0.00011512,2]
[418995715,1774725327076,-689.60596652,0.00011512,2]
[418995716,1774725327110,-689.60596652,0.00011512,2]
[418995717,1774725327145,-689.60596652,0.00011512,2]
[418995718,1774725327180,-689.60596652,0.00011512,2]
[418995719,1774725327215,-689.60596652,0.00011512,2]
[418995720,1774725327250,-689.60596652,0.00011512,2]
[418995721,1774725327445,-689.60596652,0.00011512,2]
[418995722,1774725327479,-689.60596652,0.00011512,2]
[418995723,1774725327512,-689.60596652,0.00011512,2]
[418995724,1774725327545,-689.60596652,0.00011512,2]
[418995725,1774725327580,-689.60596652,0.00011512,2]
[418995726,1774725327616,-689.60596652,0.00011512,2]
[418995727,1774725327650,-689.60596652,0.00011512,2]
[418995728,1774725327749,-689.60596652,0.00011512,2]
[418995729,1774725327784,-689.60596652,0.00011512,2]
[418995730,1774725327816,-689.60596652,0.00011512,2]
[418995731,1774725327849,-689.60596652,0.00011512,2]